[Event "Titled Tuesday Blitz January 17 Late 2023"]
[White "Haszon, David"]
[Black "Rosen, Eric"]
[WhiteFideId "733610"]
[BlackFideId "2032562"]
[WhiteElo "2264"]
[BlackElo "2349"]
[Result "1/2-1/2"]
[Round "06"]
[TimeControl "180+2"]
[Date "2023.01.17"]
[WhiteClock "0:00:07"]
[BlackClock "0:00:04"]

1. d4 {[%clk 0:03:00]}  d5 {[%clk 0:02:59]} 2. Bf4 {[%clk 0:02:57]}  c5 {[%clk 0:02:58]} 3. e3 {[%clk 0:02:55]}  Nc6 {[%clk 0:02:59]} 4. Nd2 {[%clk 0:02:54]}  cxd4 {[%clk 0:02:49]} 5. exd4 {[%clk 0:02:33]}  Nxd4 {[%clk 0:02:49]} 6. Ngf3 {[%clk 0:02:27]}  Nxf3+ {[%clk 0:02:33]} 7. Nxf3 {[%clk 0:02:28]}  Nf6 {[%clk 0:02:32]} 8. Ne5 {[%clk 0:02:20]}  e6 {[%clk 0:02:19]} 9. Bd3 {[%clk 0:02:12]}  Be7 {[%clk 0:01:57]} 10. O-O {[%clk 0:02:10]}  O-O {[%clk 0:01:58]} 11. Qf3 {[%clk 0:02:00]}  Nd7 {[%clk 0:01:39]} 12. Qh3 {[%clk 0:01:51]}  g6 {[%clk 0:01:28]} 13. Rae1 {[%clk 0:01:24]}  Nxe5 {[%clk 0:01:27]} 14. Bxe5 {[%clk 0:01:25]}  Bf6 {[%clk 0:01:28]} 15. f4 {[%clk 0:01:26]}  Bd7 {[%clk 0:01:23]} 16. b3 {[%clk 0:01:22]}  Rc8 {[%clk 0:01:21]} 17. Qh6 {[%clk 0:01:14]}  Bxe5 {[%clk 0:01:01]} 18. fxe5 {[%clk 0:01:15]}  f5 {[%clk 0:01:02]} 19. exf6 {[%clk 0:01:05]}  Rxf6 {[%clk 0:01:02]} 20. Rxf6 {[%clk 0:01:05]}  Qxf6 {[%clk 0:01:03]} 21. Rf1 {[%clk 0:01:06]}  Qd4+ {[%clk 0:00:57]} 22. Kh1 {[%clk 0:01:06]}  Qg7 {[%clk 0:00:57]} 23. Qe3 {[%clk 0:01:05]}  b6 {[%clk 0:00:52]} 24. a4 {[%clk 0:00:53]}  Rf8 {[%clk 0:00:52]} 25. Re1 {[%clk 0:00:52]}  Qc3 {[%clk 0:00:34]} 26. h3 {[%clk 0:00:48]}  Rf6 {[%clk 0:00:17]} 27. Rd1 {[%clk 0:00:46]}  Qc5 {[%clk 0:00:10]} 28. Qg3 {[%clk 0:00:46]}  Qf8 {[%clk 0:00:10]} 29. Re1 {[%clk 0:00:45]}  Kg7 {[%clk 0:00:09]} 30. Qc7 {[%clk 0:00:44]}  Rf7 {[%clk 0:00:05]} 31. Qxa7 {[%clk 0:00:44]}  Qd6 {[%clk 0:00:05]} 32. a5 {[%clk 0:00:34]}  bxa5 {[%clk 0:00:04]} 33. Qxa5 {[%clk 0:00:34]}  e5 {[%clk 0:00:04]} 34. Qc3 {[%clk 0:00:28]}  d4 {[%clk 0:00:04]} 35. Qd2 {[%clk 0:00:24]}  Bc6 {[%clk 0:00:03]} 36. Qe2 {[%clk 0:00:23]}  Re7 {[%clk 0:00:02]} 37. Be4 {[%clk 0:00:21]}  Bxe4 {[%clk 0:00:03]} 38. Qxe4 {[%clk 0:00:22]}  Qf6 {[%clk 0:00:03]} 39. Kg1 {[%clk 0:00:20]}  Qd6 {[%clk 0:00:02]} 40. Rf1 {[%clk 0:00:19]}  h6 {[%clk 0:00:02]} 41. Qf3 {[%clk 0:00:19]}  Rd7 {[%clk 0:00:03]} 42. Qe4 {[%clk 0:00:18]}  Qe6 {[%clk 0:00:02]} 43. Re1 {[%clk 0:00:18]}  Re7 {[%clk 0:00:02]} 44. b4 {[%clk 0:00:18]}  Qb6 {[%clk 0:00:03]} 45. Kh1 {[%clk 0:00:12]}  Qxb4 {[%clk 0:00:03]} 46. Rf1 {[%clk 0:00:12]}  Qd6 {[%clk 0:00:03]} 47. Qf3 {[%clk 0:00:12]}  Rd7 {[%clk 0:00:04]} 48. Qe4 {[%clk 0:00:12]}  Qe6 {[%clk 0:00:03]} 49. Re1 {[%clk 0:00:12]}  Re7 {[%clk 0:00:03]} 50. Rf1 {[%clk 0:00:12]}  Qd6 {[%clk 0:00:03]} 51. Qf3 {[%clk 0:00:12]}  Rd7 {[%clk 0:00:03]} 52. Qe4 {[%clk 0:00:12]}  Qd5 {[%clk 0:00:03]} 53. Qh4 {[%clk 0:00:10]}  Rf7 {[%clk 0:00:03]} 54. Re1 {[%clk 0:00:08]}  Rf6 {[%clk 0:00:02]} 55. Qg3 {[%clk 0:00:08]}  Re6 {[%clk 0:00:03]} 56. Qa3 {[%clk 0:00:06]}  Qd7 {[%clk 0:00:02]} 57. Qd3 {[%clk 0:00:05]}  Qe7 {[%clk 0:00:03]} 58. Qe4 {[%clk 0:00:06]}  g5 {[%clk 0:00:02]} 59. Rf1 {[%clk 0:00:05]}  Rf6 {[%clk 0:00:03]} 60. Re1 {[%clk 0:00:05]}  Rf4 {[%clk 0:00:02]} 61. Qd5 {[%clk 0:00:05]}  Qf6 {[%clk 0:00:02]} 62. Qxe5 {[%clk 0:00:05]}  Rf1+ {[%clk 0:00:02]} 63. Kh2 {[%clk 0:00:05]}  Qxe5+ {[%clk 0:00:01]} 64. Rxe5 {[%clk 0:00:05]}  Rf2 {[%clk 0:00:02]} 65. Rd5 {[%clk 0:00:05]}  Rxc2 {[%clk 0:00:02]} 66. Rxd4 {[%clk 0:00:05]}  Kg6 {[%clk 0:00:03]} 67. Rd6+ {[%clk 0:00:06]}  Kg7 {[%clk 0:00:02]} 68. Rd4 {[%clk 0:00:06]}  Rc6 {[%clk 0:00:02]} 69. Re4 {[%clk 0:00:07]}  Kf6 {[%clk 0:00:03]} 70. Rd4 {[%clk 0:00:07]}  Ke5 {[%clk 0:00:03]} 71. Ra4 {[%clk 0:00:07]}  Kf5 {[%clk 0:00:03]} 72. Kg3 {[%clk 0:00:07]}  Re6 {[%clk 0:00:03]} 73. Ra5+ {[%clk 0:00:07]}  Kg6 {[%clk 0:00:02]} 74. Kh2 {[%clk 0:00:08]}  h5 {[%clk 0:00:02]} 75. Ra4 {[%clk 0:00:07]}  Kf5 {[%clk 0:00:02]} 76. Ra5+ {[%clk 0:00:08]}  Re5 {[%clk 0:00:03]} 77. Ra4 {[%clk 0:00:08]}  Re4 {[%clk 0:00:03]} 78. Ra5+ {[%clk 0:00:08]}  Kf4 {[%clk 0:00:03]} 79. Ra8 {[%clk 0:00:08]}  Re5 {[%clk 0:00:03]} 80. Rf8+ {[%clk 0:00:08]}  Rf5 {[%clk 0:00:03]} 81. Ra8 {[%clk 0:00:09]}  g4 {[%clk 0:00:03]} 82. Ra4+ {[%clk 0:00:09]}  Kg5 {[%clk 0:00:03]} 83. hxg4 {[%clk 0:00:09]}  hxg4 {[%clk 0:00:04]} 84. Kg3 {[%clk 0:00:10]}  Rd5 {[%clk 0:00:04]} 85. Rxg4+ {[%clk 0:00:10]}  Kh5 {[%clk 0:00:04]} 86. Rf4 {[%clk 0:00:10]}  Kg5 {[%clk 0:00:04]} 87. Rf3 {[%clk 0:00:10]}  Rd4 {[%clk 0:00:04]} 88. Ra3 {[%clk 0:00:10]}  Rd5 {[%clk 0:00:03]} 89. Kh3 {[%clk 0:00:10]}  Rc5 {[%clk 0:00:03]} 90. Ra8 {[%clk 0:00:09]}  Rb5 {[%clk 0:00:03]} 91. Rg8+ {[%clk 0:00:08]}  Kh5 {[%clk 0:00:04]} 92. g4+ {[%clk 0:00:07]}  Kh6 {[%clk 0:00:04]} 93. Kh4 {[%clk 0:00:07]}  Rb1 {[%clk 0:00:04]} 94. Rd8 {[%clk 0:00:04]}  Rh1+ {[%clk 0:00:03]} 95. Kg3 {[%clk 0:00:05]}  Rg1+ {[%clk 0:00:04]} 96. Kf3 {[%clk 0:00:05]}  Rf1+ {[%clk 0:00:04]} 97. Kg3 {[%clk 0:00:06]}  Rg1+ {[%clk 0:00:04]} 98. Kf3 {[%clk 0:00:06]}  Rf1+ {[%clk 0:00:05]} 99. Kg3 {[%clk 0:00:07]}  Rg1+ {[%clk 0:00:04]} 1/2-1/2


[Site "https://www.chess.com"]

[Event "Titled Tuesday Blitz January 17 Late 2023"]
[White "Rego, Pedro Filipe"]
[Black "Czernek, Tymon"]
[WhiteFideId "1904310"]
[BlackFideId "1199510"]
[WhiteElo "2312"]
[BlackElo "2314"]
[Result "0-1"]
[Round "06"]
[TimeControl "180+2"]
[Date "2023.01.17"]
[WhiteClock "0:00:13"]
[BlackClock "0:00:18"]

1. c4 {[%clk 0:02:49]}  e5 {[%clk 0:02:59]} 2. Nc3 {[%clk 0:02:44]}  Nf6 {[%clk 0:02:58]} 3. e4 {[%clk 0:02:34]}  Bc5 {[%clk 0:02:53]} 4. Be2 {[%clk 0:02:29]}  Nc6 {[%clk 0:02:49]} 5. Nf3 {[%clk 0:02:27]}  O-O {[%clk 0:02:47]} 6. O-O {[%clk 0:02:22]}  d6 {[%clk 0:02:47]} 7. h3 {[%clk 0:02:17]}  Nd4 {[%clk 0:02:46]} 8. d3 {[%clk 0:02:14]}  Nxe2+ {[%clk 0:02:43]} 9. Qxe2 {[%clk 0:02:10]}  h6 {[%clk 0:02:44]} 10. Be3 {[%clk 0:02:07]}  Bb6 {[%clk 0:02:41]} 11. Bxb6 {[%clk 0:02:02]}  axb6 {[%clk 0:02:39]} 12. d4 {[%clk 0:02:03]}  Qe7 {[%clk 0:02:35]} 13. dxe5 {[%clk 0:01:54]}  dxe5 {[%clk 0:02:36]} 14. Nd5 {[%clk 0:01:49]}  Nxd5 {[%clk 0:02:18]} 15. cxd5 {[%clk 0:01:49]}  Bd7 {[%clk 0:01:53]} 16. Rfc1 {[%clk 0:01:43]}  c5 {[%clk 0:01:50]} 17. Nd2 {[%clk 0:01:20]}  b5 {[%clk 0:01:47]} 18. a3 {[%clk 0:01:11]}  b6 {[%clk 0:01:46]} 19. Re1 {[%clk 0:01:03]}  Ra4 {[%clk 0:01:44]} 20. Rad1 {[%clk 0:00:57]}  Qd6 {[%clk 0:01:41]} 21. Qe3 {[%clk 0:00:53]}  Rfa8 {[%clk 0:01:28]} 22. Nb1 {[%clk 0:00:40]}  b4 {[%clk 0:01:20]} 23. b3 {[%clk 0:00:30]}  Rxa3 {[%clk 0:00:57]} 24. Nxa3 {[%clk 0:00:30]}  bxa3 {[%clk 0:00:58]} 25. Ra1 {[%clk 0:00:26]}  Ra5 {[%clk 0:00:36]} 26. Qc1 {[%clk 0:00:22]}  Qg6 {[%clk 0:00:31]} 27. Kh1 {[%clk 0:00:17]}  Qf6 {[%clk 0:00:20]} 28. Ra2 {[%clk 0:00:13]}  Kh7 {[%clk 0:00:13]} 29. Re3 {[%clk 0:00:10]}  Qf4 {[%clk 0:00:08]} 30. Kg1 {[%clk 0:00:07]}  Qg5 {[%clk 0:00:07]} 31. Rxa3 {[%clk 0:00:07]}  Bxh3 {[%clk 0:00:07]} 32. g3 {[%clk 0:00:06]}  Rxa3 {[%clk 0:00:06]} 33. Qxa3 {[%clk 0:00:07]}  Qg4 {[%clk 0:00:06]} 34. Qa1 {[%clk 0:00:06]}  Qg5 {[%clk 0:00:05]} 35. Qe1 {[%clk 0:00:06]}  Bg4 {[%clk 0:00:05]} 36. Rc3 {[%clk 0:00:06]}  Qh5 {[%clk 0:00:06]} 37. Qf1 {[%clk 0:00:05]}  Bf3 {[%clk 0:00:06]} 38. Rxf3 {[%clk 0:00:04]}  Qxf3 {[%clk 0:00:07]} 39. Qg2 {[%clk 0:00:04]}  Qd1+ {[%clk 0:00:07]} 40. Qf1 {[%clk 0:00:05]}  Qxf1+ {[%clk 0:00:06]} 41. Kxf1 {[%clk 0:00:06]}  Kg8 {[%clk 0:00:06]} 42. Ke2 {[%clk 0:00:06]}  Kf8 {[%clk 0:00:07]} 43. Kd3 {[%clk 0:00:07]}  Ke7 {[%clk 0:00:07]} 44. Kc4 {[%clk 0:00:08]}  Kd6 {[%clk 0:00:07]} 45. Kb5 {[%clk 0:00:09]}  Kc7 {[%clk 0:00:08]} 46. d6+ {[%clk 0:00:09]}  Kxd6 {[%clk 0:00:08]} 47. Kxb6 {[%clk 0:00:10]}  g5 {[%clk 0:00:09]} 48. Kb5 {[%clk 0:00:10]}  h5 {[%clk 0:00:09]} 49. Kc4 {[%clk 0:00:10]}  h4 {[%clk 0:00:10]} 50. gxh4 {[%clk 0:00:10]}  gxh4 {[%clk 0:00:11]} 51. Kd3 {[%clk 0:00:11]}  h3 {[%clk 0:00:11]} 52. f4 {[%clk 0:00:11]}  h2 {[%clk 0:00:12]} 53. fxe5+ {[%clk 0:00:12]}  Kxe5 {[%clk 0:00:12]} 54. b4 {[%clk 0:00:12]}  h1=Q {[%clk 0:00:13]} 55. bxc5 {[%clk 0:00:13]}  Qxe4+ {[%clk 0:00:14]} 56. Kc3 {[%clk 0:00:13]}  Qd5 {[%clk 0:00:14]} 57. c6 {[%clk 0:00:14]}  Qxc6+ {[%clk 0:00:15]} 58. Kd3 {[%clk 0:00:13]}  Qe4+ {[%clk 0:00:16]} 59. Kd2 {[%clk 0:00:14]}  f5 {[%clk 0:00:17]} 60. Kc3 {[%clk 0:00:13]}  f4 {[%clk 0:00:18]} 0-1


[Site "https://www.chess.com"]

[Event "Titled Tuesday Blitz January 17 Late 2023"]
[White "Olafsson, Helgi"]
[Black "Sivakumar, Shaaketh"]
[WhiteFideId "2300010"]
[BlackFideId "30940176"]
[WhiteElo "2491"]
[BlackElo "2337"]
[Result "0-1"]
[Round "06"]
[TimeControl "180+2"]
[Date "2023.01.17"]
[WhiteClock "0:00:01"]
[BlackClock "0:01:23"]

1. Nf3 {[%clk 0:03:00]}  Nf6 {[%clk 0:02:59]} 2. c4 {[%clk 0:03:00]}  b6 {[%clk 0:02:59]} 3. d4 {[%clk 0:02:58]}  Bb7 {[%clk 0:02:59]} 4. a3 {[%clk 0:02:54]}  g6 {[%clk 0:02:58]} 5. Nc3 {[%clk 0:02:53]}  Ne4 {[%clk 0:02:57]} 6. Nxe4 {[%clk 0:02:49]}  Bxe4 {[%clk 0:02:58]} 7. Bf4 {[%clk 0:02:46]}  Bg7 {[%clk 0:02:57]} 8. Nd2 {[%clk 0:02:44]}  Bb7 {[%clk 0:02:57]} 9. e3 {[%clk 0:02:43]}  d6 {[%clk 0:02:57]} 10. Bg3 {[%clk 0:02:38]}  Nd7 {[%clk 0:02:56]} 11. f3 {[%clk 0:02:15]}  e5 {[%clk 0:02:55]} 12. d5 {[%clk 0:02:12]}  O-O {[%clk 0:02:51]} 13. Be2 {[%clk 0:02:12]}  f5 {[%clk 0:02:51]} 14. O-O {[%clk 0:02:11]}  h5 {[%clk 0:02:46]} 15. Bf2 {[%clk 0:02:08]}  g5 {[%clk 0:02:45]} 16. e4 {[%clk 0:02:02]}  f4 {[%clk 0:02:35]} 17. b4 {[%clk 0:02:01]}  Nf6 {[%clk 0:02:29]} 18. c5 {[%clk 0:02:00]}  Bc8 {[%clk 0:02:29]} 19. Rc1 {[%clk 0:01:56]}  g4 {[%clk 0:02:28]} 20. Bh4 {[%clk 0:01:55]}  Qe8 {[%clk 0:02:21]} 21. cxd6 {[%clk 0:01:53]}  cxd6 {[%clk 0:02:22]} 22. Rc6 {[%clk 0:01:52]}  Qd7 {[%clk 0:02:20]} 23. Nc4 {[%clk 0:01:44]}  Ne8 {[%clk 0:02:17]} 24. g3 {[%clk 0:01:36]}  fxg3 {[%clk 0:02:16]} 25. hxg3 {[%clk 0:01:29]}  Bb7 {[%clk 0:02:14]} 26. b5 {[%clk 0:01:27]}  gxf3 {[%clk 0:02:12]} 27. Rxf3 {[%clk 0:01:20]}  Rxf3 {[%clk 0:02:08]} 28. Bxf3 {[%clk 0:01:20]}  Bxc6 {[%clk 0:02:09]} 29. dxc6 {[%clk 0:01:14]}  Qe6 {[%clk 0:02:09]} 30. Ne3 {[%clk 0:01:12]}  Nc7 {[%clk 0:02:08]} 31. Be2 {[%clk 0:01:10]}  Kh8 {[%clk 0:02:07]} 32. Bc4 {[%clk 0:01:09]}  Qg6 {[%clk 0:02:07]} 33. Nf5 {[%clk 0:01:05]}  d5 {[%clk 0:02:02]} 34. Ne7 {[%clk 0:01:01]}  Qxe4 {[%clk 0:02:00]} 35. Qxh5+ {[%clk 0:00:59]}  Qh7 {[%clk 0:02:01]} 36. Ng6+ {[%clk 0:00:47]}  Kg8 {[%clk 0:02:00]} 37. Ne7+ {[%clk 0:00:44]}  Kh8 {[%clk 0:02:01]} 38. Qxh7+ {[%clk 0:00:44]}  Kxh7 {[%clk 0:02:01]} 39. Nxd5 {[%clk 0:00:43]}  Nxd5 {[%clk 0:01:57]} 40. Bxd5 {[%clk 0:00:43]}  Bf8 {[%clk 0:01:53]} 41. Be6 {[%clk 0:00:28]}  Bd6 {[%clk 0:01:52]} 42. Kf2 {[%clk 0:00:27]}  a6 {[%clk 0:01:49]} 43. a4 {[%clk 0:00:24]}  axb5 {[%clk 0:01:49]} 44. axb5 {[%clk 0:00:24]}  Ra5 {[%clk 0:01:49]} 45. Bd8 {[%clk 0:00:23]}  Rxb5 {[%clk 0:01:46]} 46. c7 {[%clk 0:00:22]}  Bxc7 {[%clk 0:01:41]} 47. Bxc7 {[%clk 0:00:21]}  Kh6 {[%clk 0:01:40]} 48. g4 {[%clk 0:00:20]}  Kg5 {[%clk 0:01:40]} 49. Bd8+ {[%clk 0:00:18]}  Kf4 {[%clk 0:01:39]} 50. g5 {[%clk 0:00:18]}  Rb2+ {[%clk 0:01:40]} 51. Kf1 {[%clk 0:00:16]}  Kf3 {[%clk 0:01:35]} 52. Ke1 {[%clk 0:00:14]}  Ke3 {[%clk 0:01:33]} 53. Kf1 {[%clk 0:00:07]}  Kf3 {[%clk 0:01:30]} 54. Kg1 {[%clk 0:00:05]}  e4 {[%clk 0:01:27]} 55. g6 {[%clk 0:00:02]}  Rg2+ {[%clk 0:01:26]} 56. Kf1 {[%clk 0:00:01]}  Rxg6 {[%clk 0:01:27]} 57. Bc4 {[%clk 0:00:01]}  e3 {[%clk 0:01:23]} 0-1


[Site "https://www.chess.com"]

[Event "Titled Tuesday Blitz January 17 Late 2023"]
[White "Sebag, Marie"]
[Black "Vasques, Antonio Pedro Freixial"]
[WhiteFideId "617822"]
[BlackFideId "1908332"]
[WhiteElo "2430"]
[BlackElo "2214"]
[Result "1-0"]
[Round "06"]
[TimeControl "180+2"]
[Date "2023.01.17"]
[WhiteClock "0:00:15"]
[BlackClock "0:00:10"]

1. e4 {[%clk 0:03:00]}  c5 {[%clk 0:02:54]} 2. Nf3 {[%clk 0:02:59]}  Nc6 {[%clk 0:02:54]} 3. c3 {[%clk 0:02:57]}  Nf6 {[%clk 0:02:53]} 4. e5 {[%clk 0:02:57]}  Nd5 {[%clk 0:02:53]} 5. d4 {[%clk 0:02:57]}  cxd4 {[%clk 0:02:52]} 6. cxd4 {[%clk 0:02:57]}  d6 {[%clk 0:02:44]} 7. Bc4 {[%clk 0:02:57]}  dxe5 {[%clk 0:02:33]} 8. dxe5 {[%clk 0:02:56]}  Ndb4 {[%clk 0:02:34]} 9. Qxd8+ {[%clk 0:02:56]}  Nxd8 {[%clk 0:02:24]} 10. Na3 {[%clk 0:02:55]}  a6 {[%clk 0:02:07]} 11. O-O {[%clk 0:02:54]}  Bg4 {[%clk 0:02:06]} 12. Nd4 {[%clk 0:02:54]}  e6 {[%clk 0:02:01]} 13. h3 {[%clk 0:02:52]}  Bh5 {[%clk 0:02:01]} 14. Be3 {[%clk 0:02:51]}  Ndc6 {[%clk 0:02:00]} 15. Nxc6 {[%clk 0:02:50]}  Nxc6 {[%clk 0:02:01]} 16. f4 {[%clk 0:02:50]}  Bg6 {[%clk 0:01:53]} 17. g4 {[%clk 0:02:46]}  b5 {[%clk 0:01:40]} 18. Be2 {[%clk 0:02:45]}  Bxa3 {[%clk 0:01:29]} 19. bxa3 {[%clk 0:02:44]}  Be4 {[%clk 0:01:30]} 20. Rad1 {[%clk 0:02:32]}  O-O {[%clk 0:01:28]} 21. Rd6 {[%clk 0:02:32]}  Rfd8 {[%clk 0:01:27]} 22. Rfd1 {[%clk 0:02:29]}  Bd5 {[%clk 0:01:26]} 23. R1xd5 {[%clk 0:02:27]}  exd5 {[%clk 0:01:23]} 24. Rxc6 {[%clk 0:02:27]}  d4 {[%clk 0:01:24]} 25. Bd2 {[%clk 0:02:24]}  d3 {[%clk 0:01:23]} 26. Bf1 {[%clk 0:02:10]}  Rac8 {[%clk 0:01:15]} 27. Rd6 {[%clk 0:02:02]}  Rxd6 {[%clk 0:01:07]} 28. exd6 {[%clk 0:02:02]}  Rd8 {[%clk 0:01:08]} 29. Bb4 {[%clk 0:01:52]}  a5 {[%clk 0:01:05]} 30. Bc5 {[%clk 0:01:40]}  d2 {[%clk 0:01:00]} 31. Be2 {[%clk 0:01:40]}  Rc8 {[%clk 0:01:00]} 32. d7 {[%clk 0:01:06]}  Rd8 {[%clk 0:01:01]} 33. Kf2 {[%clk 0:01:03]}  Rxd7 {[%clk 0:00:56]} 34. Bd1 {[%clk 0:01:03]}  Rd3 {[%clk 0:00:56]} 35. Ke2 {[%clk 0:00:50]}  Rc3 {[%clk 0:00:50]} 36. Bd6 {[%clk 0:00:47]}  f6 {[%clk 0:00:37]} 37. f5 {[%clk 0:00:36]}  Rxh3 {[%clk 0:00:31]} 38. Bb3+ {[%clk 0:00:33]}  Kh8 {[%clk 0:00:31]} 39. Kxd2 {[%clk 0:00:33]}  a4 {[%clk 0:00:30]} 40. Bd1 {[%clk 0:00:29]}  g6 {[%clk 0:00:28]} 41. Be2 {[%clk 0:00:26]}  gxf5 {[%clk 0:00:26]} 42. gxf5 {[%clk 0:00:26]}  Rh5 {[%clk 0:00:26]} 43. Bd3 {[%clk 0:00:25]}  Rg5 {[%clk 0:00:25]} 44. Kc3 {[%clk 0:00:23]}  Rg2 {[%clk 0:00:24]} 45. Bxb5 {[%clk 0:00:21]}  Rxa2 {[%clk 0:00:24]} 46. Bxa4 {[%clk 0:00:21]}  h5 {[%clk 0:00:24]} 47. Bb3 {[%clk 0:00:21]}  Ra1 {[%clk 0:00:23]} 48. a4 {[%clk 0:00:21]}  h4 {[%clk 0:00:23]} 49. Kb2 {[%clk 0:00:21]}  Rf1 {[%clk 0:00:21]} 50. a5 {[%clk 0:00:20]}  Rxf5 {[%clk 0:00:21]} 51. a6 {[%clk 0:00:19]}  Ra5 {[%clk 0:00:21]} 52. Bc4 {[%clk 0:00:19]}  h3 {[%clk 0:00:21]} 53. Kb3 {[%clk 0:00:19]}  Kg7 {[%clk 0:00:21]} 54. Kb4 {[%clk 0:00:19]}  Ra1 {[%clk 0:00:20]} 55. Kb5 {[%clk 0:00:19]}  f5 {[%clk 0:00:20]} 56. Kb6 {[%clk 0:00:19]}  Rd1 {[%clk 0:00:20]} 57. Be5+ {[%clk 0:00:18]}  Kg6 {[%clk 0:00:19]} 58. a7 {[%clk 0:00:19]}  Rd8 {[%clk 0:00:18]} 59. Bb8 {[%clk 0:00:18]}  f4 {[%clk 0:00:10]} 60. a8=Q {[%clk 0:00:15]} 1-0


[Site "https://www.chess.com"]

[Event "Titled Tuesday Blitz January 17 Late 2023"]
[White "Hirneise, Jens"]
[Black "Vaglio Munoz, Jaime"]
[WhiteFideId "24614734"]
[BlackFideId "6500145"]
[WhiteElo "2277"]
[BlackElo "2174"]
[Result "0-1"]
[Round "06"]
[TimeControl "180+2"]
[Date "2023.01.17"]
[WhiteClock "0:00:17"]
[BlackClock "0:00:28"]

1. g3 {[%clk 0:03:00]}  c6 {[%clk 0:02:57]} 2. c4 {[%clk 0:02:59]}  b5 {[%clk 0:02:56]} 3. cxb5 {[%clk 0:02:58]}  cxb5 {[%clk 0:02:57]} 4. Bg2 {[%clk 0:02:58]}  Nc6 {[%clk 0:02:57]} 5. Nf3 {[%clk 0:02:52]}  Bb7 {[%clk 0:02:52]} 6. d4 {[%clk 0:02:52]}  e6 {[%clk 0:02:51]} 7. O-O {[%clk 0:02:52]}  Nf6 {[%clk 0:02:51]} 8. a4 {[%clk 0:02:45]}  b4 {[%clk 0:02:50]} 9. Nbd2 {[%clk 0:02:41]}  d5 {[%clk 0:02:46]} 10. Nb3 {[%clk 0:02:38]}  Be7 {[%clk 0:02:44]} 11. Bf4 {[%clk 0:02:38]}  O-O {[%clk 0:02:43]} 12. Rc1 {[%clk 0:02:37]}  Rc8 {[%clk 0:02:41]} 13. Nc5 {[%clk 0:02:31]}  Qb6 {[%clk 0:02:30]} 14. Nxb7 {[%clk 0:02:20]}  Qxb7 {[%clk 0:02:29]} 15. Ne5 {[%clk 0:02:14]}  Na5 {[%clk 0:02:24]} 16. Nd3 {[%clk 0:02:05]}  b3 {[%clk 0:02:06]} 17. Bd2 {[%clk 0:02:00]}  Nc4 {[%clk 0:01:57]} 18. Bc3 {[%clk 0:02:01]}  Qa6 {[%clk 0:01:53]} 19. Ra1 {[%clk 0:01:56]}  Rb8 {[%clk 0:01:51]} 20. Re1 {[%clk 0:01:55]}  Rfc8 {[%clk 0:01:50]} 21. e4 {[%clk 0:01:51]}  dxe4 {[%clk 0:01:48]} 22. Bxe4 {[%clk 0:01:51]}  Nxe4 {[%clk 0:01:47]} 23. Rxe4 {[%clk 0:01:52]}  Rd8 {[%clk 0:01:41]} 24. Qe2 {[%clk 0:01:49]}  Nd6 {[%clk 0:01:32]} 25. Rg4 {[%clk 0:01:44]}  Bf6 {[%clk 0:01:27]} 26. Re1 {[%clk 0:01:36]}  Nf5 {[%clk 0:01:26]} 27. Ne5 {[%clk 0:01:26]}  Qxe2 {[%clk 0:01:20]} 28. Rxe2 {[%clk 0:01:27]}  h5 {[%clk 0:01:14]} 29. Rf4 {[%clk 0:01:25]}  Ne7 {[%clk 0:01:11]} 30. Rfe4 {[%clk 0:01:17]}  Bxe5 {[%clk 0:01:09]} 31. Rxe5 {[%clk 0:01:16]}  Nd5 {[%clk 0:01:09]} 32. Ba5 {[%clk 0:01:00]}  Rdc8 {[%clk 0:01:07]} 33. Rxh5 {[%clk 0:01:00]}  Rc2 {[%clk 0:01:04]} 34. Rhe5 {[%clk 0:00:57]}  Rbc8 {[%clk 0:01:01]} 35. Kf1 {[%clk 0:00:55]}  R8c4 {[%clk 0:00:58]} 36. Be1 {[%clk 0:00:40]}  Rxd4 {[%clk 0:00:55]} 37. R2e4 {[%clk 0:00:32]}  Rxe4 {[%clk 0:00:49]} 38. Rxe4 {[%clk 0:00:32]}  Rxb2 {[%clk 0:00:49]} 39. Rc4 {[%clk 0:00:29]}  Rb1 {[%clk 0:00:49]} 40. Rc8+ {[%clk 0:00:28]}  Kh7 {[%clk 0:00:48]} 41. Rb8 {[%clk 0:00:28]}  b2 {[%clk 0:00:42]} 42. Ke2 {[%clk 0:00:28]}  a6 {[%clk 0:00:34]} 43. a5 {[%clk 0:00:27]}  Kg6 {[%clk 0:00:34]} 44. h3 {[%clk 0:00:26]}  Kf5 {[%clk 0:00:34]} 45. Bd2 {[%clk 0:00:26]}  Ke4 {[%clk 0:00:34]} 46. h4 {[%clk 0:00:19]}  g6 {[%clk 0:00:33]} 47. Rb3 {[%clk 0:00:18]}  Kd4 {[%clk 0:00:32]} 48. g4 {[%clk 0:00:18]}  Kc4 {[%clk 0:00:31]} 49. Rb8 {[%clk 0:00:18]}  Nc3+ {[%clk 0:00:30]} 50. Bxc3 {[%clk 0:00:18]}  Kxc3 {[%clk 0:00:31]} 51. Rc8+ {[%clk 0:00:19]}  Kb3 {[%clk 0:00:31]} 52. Rb8+ {[%clk 0:00:19]}  Ka2 {[%clk 0:00:31]} 53. h5 {[%clk 0:00:16]}  gxh5 {[%clk 0:00:29]} 54. gxh5 {[%clk 0:00:17]}  Rh1 {[%clk 0:00:28]} 0-1


[Site "https://www.chess.com"]

[Event "Titled Tuesday Blitz January 17 Late 2023"]
[White "Medeiros,Thauane Ferreira"]
[Black "Yurovskykh, Oleksandr"]
[WhiteFideId "2134470"]
[BlackFideId "14134020"]
[WhiteElo "1854"]
[BlackElo "2328"]
[Result "0-1"]
[Round "06"]
[TimeControl "180+2"]
[Date "2023.01.17"]
[WhiteClock "0:00:02"]
[BlackClock "0:00:10"]

1. d4 {[%clk 0:01:46]}  g6 {[%clk 0:02:54]} 2. Bf4 {[%clk 0:01:45]}  Bg7 {[%clk 0:02:54]} 3. e3 {[%clk 0:01:45]}  d6 {[%clk 0:02:54]} 4. Nf3 {[%clk 0:01:44]}  Nd7 {[%clk 0:02:54]} 5. h3 {[%clk 0:01:44]}  e5 {[%clk 0:02:53]} 6. Bh2 {[%clk 0:01:43]}  Qe7 {[%clk 0:02:53]} 7. c3 {[%clk 0:01:43]}  Ngf6 {[%clk 0:02:44]} 8. Bc4 {[%clk 0:01:41]}  O-O {[%clk 0:02:43]} 9. O-O {[%clk 0:01:39]}  Re8 {[%clk 0:02:39]} 10. Nbd2 {[%clk 0:01:32]}  e4 {[%clk 0:02:36]} 11. Ne1 {[%clk 0:01:29]}  h5 {[%clk 0:02:28]} 12. a4 {[%clk 0:01:24]}  Nf8 {[%clk 0:02:27]} 13. a5 {[%clk 0:01:00]}  a6 {[%clk 0:02:04]} 14. Qb3 {[%clk 0:00:51]}  g5 {[%clk 0:01:57]} 15. Nc2 {[%clk 0:00:46]}  Ng6 {[%clk 0:01:55]} 16. Nb4 {[%clk 0:00:44]}  c6 {[%clk 0:01:48]} 17. Bxd6 {[%clk 0:00:37]}  Qxd6 {[%clk 0:01:45]} 18. Bxf7+ {[%clk 0:00:38]}  Kh7 {[%clk 0:01:35]} 19. Bxe8 {[%clk 0:00:38]}  Nxe8 {[%clk 0:01:35]} 20. Nxe4 {[%clk 0:00:38]}  Qe7 {[%clk 0:01:35]} 21. Nc5 {[%clk 0:00:36]}  Nd6 {[%clk 0:01:32]} 22. Rae1 {[%clk 0:00:33]}  g4 {[%clk 0:01:13]} 23. hxg4 {[%clk 0:00:34]}  hxg4 {[%clk 0:01:09]} 24. e4 {[%clk 0:00:33]}  Nb5 {[%clk 0:01:01]} 25. e5 {[%clk 0:00:29]}  Bf5 {[%clk 0:00:58]} 26. g3 {[%clk 0:00:26]}  Nf8 {[%clk 0:00:41]} 27. Kg2 {[%clk 0:00:24]}  Kg6 {[%clk 0:00:41]} 28. Rh1 {[%clk 0:00:19]}  Nh7 {[%clk 0:00:41]} 29. Nc2 {[%clk 0:00:16]}  Ng5 {[%clk 0:00:39]} 30. Ne3 {[%clk 0:00:16]}  Rf8 {[%clk 0:00:23]} 31. Nxf5 {[%clk 0:00:15]}  Rxf5 {[%clk 0:00:24]} 32. Qc2 {[%clk 0:00:16]}  Qd8 {[%clk 0:00:18]} 33. Rh4 {[%clk 0:00:15]}  Qd5+ {[%clk 0:00:18]} 34. Kg1 {[%clk 0:00:14]}  Nf3+ {[%clk 0:00:18]} 35. Kf1 {[%clk 0:00:13]}  Nxh4 {[%clk 0:00:18]} 36. gxh4 {[%clk 0:00:13]}  Qh1+ {[%clk 0:00:17]} 37. Ke2 {[%clk 0:00:13]}  Qf3+ {[%clk 0:00:17]} 38. Kf1 {[%clk 0:00:13]}  g3 {[%clk 0:00:15]} 39. h5+ {[%clk 0:00:09]}  Kxh5 {[%clk 0:00:12]} 40. Re3 {[%clk 0:00:09]}  Qh1+ {[%clk 0:00:10]} 41. Ke2 {[%clk 0:00:09]}  Rxf2+ {[%clk 0:00:11]} 42. Kd3 {[%clk 0:00:06]}  Rxc2 {[%clk 0:00:11]} 43. Kxc2 {[%clk 0:00:05]}  g2 {[%clk 0:00:11]} 44. Ne6 {[%clk 0:00:04]}  g1=Q {[%clk 0:00:09]} 45. Nxg7+ {[%clk 0:00:04]}  Kg6 {[%clk 0:00:10]} 46. Ne6 {[%clk 0:00:02]}  Qd1# {[%clk 0:00:10]} 0-1


[Site "https://www.chess.com"]